fUST/lending_fUST_20250908
["ID","MTS","AMOUNT","RATE_DAILY","PERIOD"]
[384259759,1757310648538,-174.233875,0.00013698,2]
[384259761,1757310648547,-484.10759434,0.00013698,2]
[384259763,1757310648559,-174.233875,0.00013698,2]
[384259765,1757310648569,-570.07,0.00013698,2]
[384259767,1757310648578,-174.233875,0.00013698,2]
[384259769,1757310648588,-174.233875,0.00013698,2]
[384259771,1757310648598,-174.233875,0.00013698,2]
[384259773,1757310648609,-174.233875,0.00013698,2]
[384259775,1757310648619,-174.233875,0.00013698,2]
[384259776,1757310648628,-480.0,0.00013698,2]
[384259777,1757310648638,-480.0,0.00013698,2]
[384259778,1757310648647,-174.233875,0.00013698,2]
[384259779,1757310648657,-174.233875,0.00013698,2]
[384259780,1757310648666,-174.233875,0.00013698,2]
[384259781,1757310648675,-480.0,0.00013698,2]
[384259782,1757310648684,-174.233875,0.00013698,2]
[384259783,1757310648693,-174.233875,0.00013698,2]
[384259784,1757310648704,-174.233882,0.00013698,2]
[384259785,1757310648714,-2636.56,0.00013698,2]
[384259786,1757310648724,-480.0,0.00013698,2]
[384259787,1757310648734,-480.0,0.00013698,2]
[384259788,1757310648743,-151.0,0.00013698,2]
[384259789,1757310648752,-215.988191,0.00013698,2]
[384259790,1757310648761,-480.0,0.00013698,2]
[384259791,1757310648771,-480.0,0.00013698,2]
[384259792,1757310648781,-480.0,0.00013698,2]
[384259793,1757310648790,-480.0,0.00013698,2]
[384259794,1757310648799,-151.0,0.00013698,2]
[384259796,1757310648810,-391.053406,0.00013698,2]
[384259797,1757310648819,-151.0,0.00013698,2]
[384259799,1757310648829,-391.053406,0.00013698,2]
[384259801,1757310648838,-235.491342,0.00013698,2]
[384259803,1757310648847,-480.0,0.00013698,2]
[384259805,1757310648856,-391.053406,0.00013698,2]
[384259807,1757310648867,-391.053406,0.00013698,2]
[384259809,1757310648876,-391.053406,0.00013698,2]
[384259811,1757310648886,-484.77475524,0.00013698,2]
[384259813,1757310648896,-391.053406,0.00013698,2]
[384259815,1757310648905,-500.99781637,0.00013698,2]
[384259817,1757310648916,-391.053406,0.00013698,2]
[384259819,1757310648925,-391.053406,0.00013698,2]
[384259821,1757310648934,-391.053406,0.00013698,2]
[384259823,1757310648943,-391.053406,0.00013698,2]
[384259825,1757310648953,-391.053406,0.00013698,2]
[384259827,1757310648962,-391.053406,0.00013698,2]
[384259829,1757310648972,-480.0,0.00013698,2]
[384259830,1757310648981,-391.053406,0.00013698,2]
[384259832,1757310648991,-391.053406,0.00013698,2]
[384259834,1757310649000,-391.053406,0.00013698,2]
[384259836,1757310649009,-391.053406,0.00013698,2]
[384259838,1757310649018,-391.053406,0.00013698,2]
[384259840,1757310649027,-480.0,0.00013698,2]
[384259842,1757310649035,-391.053406,0.00013698,2]
[384259844,1757310649044,-391.053406,0.00013698,2]
[384259846,1757310649053,-484.46456859,0.00013698,2]
[384259848,1757310649062,-391.053415,0.00013698,2]
[384259850,1757310649072,-480.0,0.00013698,2]
[384259852,1757310649081,-601.48,0.00013698,2]
[384259854,1757310649091,-480.0,0.00013698,2]
[384259856,1757310649099,-486.68394276,0.00013698,2]
[384259858,1757310649109,-480.0,0.00013698,2]
[384259860,1757310649119,-480.0,0.00013698,2]
[384259862,1757310649128,-480.0,0.00013698,2]
[384259864,1757310649138,-480.0,0.00013698,2]
[384259866,1757310649148,-480.0,0.00013698,2]
[384259868,1757310649158,-480.0,0.00013698,2]
[384259870,1757310649167,-480.0,0.00013698,2]
[384259872,1757310649177,-500.0,0.00013698,2]
[384259874,1757310649186,-1374.683137,0.00013699,2]
[384259876,1757310649195,-151.0,0.00013699,2]
[384259878,1757310649204,-151.0,0.00013699,2]
[384259880,1757310649214,-159.448951,0.00013699,2]
[384259882,1757310649223,-246.59988,0.00013699,2]
[384259884,1757310649232,-246.59988,0.00013699,2]
[384259886,1757310649241,-246.59988,0.00013699,2]
[384259888,1757310649251,-246.59988,0.00013699,2]
[384259890,1757310649260,-246.59988,0.00013699,2]
[384259892,1757310649270,-246.59988,0.00013699,2]
[384259894,1757310649279,-246.59988,0.00013699,2]
[384259896,1757310649288,-246.59988,0.00013699,2]
[384259897,1757310649297,-246.59988,0.00013699,2]
[384259899,1757310649307,-246.59988,0.00013699,2]
[384259901,1757310649317,-246.59988,0.00013699,2]
[384259903,1757310649326,-246.59988,0.00013699,2]
[384259905,1757310649335,-246.59988,0.00013699,2]
[384259907,1757310649344,-246.59988,0.00013699,2]
[384259909,1757310649354,-246.59988,0.00013699,2]
[384259911,1757310649363,-246.59988,0.00013699,2]
[384259913,1757310649373,-246.59988,0.00013699,2]
[384259915,1757310649382,-246.59988,0.00013699,2]
[384259917,1757310649392,-246.59988,0.00013699,2]
[384259919,1757310649401,-246.599879,0.00013699,2]
[384259921,1757310649411,-151.0,0.00013699,2]
[384259923,1757310649420,-151.0,0.00013699,2]
[384259925,1757310649429,-151.0,0.00013699,2]
[384259927,1757310649438,-151.0,0.00013699,2]
[384259929,1757310649448,-156.771054,0.00013699,2]
[384259931,1757310649457,-152.774382,0.00013699,2]
[384259933,1757310649467,-151.0,0.00013699,2]
[384259935,1757310649476,-151.0,0.00013699,2]
[384259937,1757310649486,-220.16341,0.00013699,2]
[384259939,1757310649495,-181.321046,0.00013699,2]
[384259941,1757310649505,-600.790819,0.00013699,2]
[384259943,1757310649515,-151.0,0.00013699,2]
[384259945,1757310649524,-151.0,0.00013699,2]
[384259947,1757310649534,-151.0,0.00013699,2]
[384259949,1757310649543,-151.0,0.00013699,2]
[384259951,1757310649552,-151.0,0.00013699,2]
[384259953,1757310649565,-151.0,0.00013699,2]
[384259955,1757310649574,-151.0,0.00013699,2]
[384259957,1757310649583,-151.0,0.00013699,2]
[384259959,1757310649592,-151.0,0.00013699,2]
[384259961,1757310649601,-151.0,0.00013699,2]
[384259963,1757310649612,-151.0,0.00013699,2]
[384259965,1757310649621,-151.0,0.00013699,2]
[384259967,1757310649632,-151.0,0.00013699,2]
[384259969,1757310649641,-151.0,0.00013699,2]
[384259971,1757310649651,-151.0,0.00013699,2]
[384259973,1757310649660,-151.0,0.00013699,2]
[384259975,1757310649670,-234.690254,0.00013699,2]
[384259977,1757310649681,-151.0,0.000137,2]
[384259979,1757310649690,-151.0,0.000137,2]
[384259981,1757310649699,-2923.96432888,0.00013702,2]
[384259983,1757310649709,-168.0,0.00013702,2]
[384259984,1757310649718,-372.0,0.00013737,2]
[384259986,1757310649728,-2105.41764886,0.00013745,2]
[384259988,1757310649737,-168.0,0.00013753,2]
[384259990,1757310649746,-372.0,0.00013787,2]
[384259992,1757310649756,-2183.31810187,0.000138,2]
[384259994,1757310649765,-928.61,0.00013832,2]
[384259996,1757310649774,-10576.6745308,0.00013835,2]
[384259998,1757310649784,-2264.10087164,0.00013855,2]
[384260000,1757310649793,-372.0,0.00013861,2]
[384260002,1757310649802,-168.0,0.00013872,2]
[384260004,1757310649811,-417.15472785,0.00013878,2]
[384260006,1757310649820,-160.0,0.00013878,2]
[384260008,1757310649830,-233.03190505,0.00013878,2]
[384260010,1757310649839,-203.26219058,0.00013878,2]
[384260012,1757310649848,-846.71598105,0.00013878,2]
[384260014,1757310649857,-530.71506861,0.00013878,2]
[384260016,1757310649866,-217.62647793,0.00013881,2]
[384260018,1757310649875,-160.0,0.00013881,2]
[384260020,1757310649885,-160.0,0.00013881,2]
[384260022,1757310649895,-160.0,0.00013881,2]
[384260024,1757310649904,-160.0,0.00013881,2]
[384260026,1757310649913,-160.0,0.00013881,2]
[384260028,1757310649923,-160.0,0.00013881,2]
[384260030,1757310649933,-160.0,0.00013881,2]
[384260043,1757310650042,-160.0,0.00013881,2]
[384260045,1757310650052,-160.0,0.00013881,2]
[384260047,1757310650061,-372.0,0.00013899,2]
[384260049,1757310650071,-151.0,0.000139,2]
[384260051,1757310650081,-151.0,0.000139,2]
[384260053,1757310650090,-2347.87260389,0.0001391,2]
[384260055,1757310650099,-961.528,0.00013921,2]
[384260057,1757310650108,-2160.799,0.00013921,2]
[384260059,1757310650117,-654.379,0.00013921,2]
[384260061,1757310650127,-372.0,0.0001394,2]
[384260063,1757310650135,-372.0,0.00013955,2]
[384260065,1757310650145,-2344.57990406,0.00013965,2]
[384260067,1757310650154,-928.61,0.0001397,2]
[384260069,1757310650163,-300.0,0.00013971,2]
[384260071,1757310650172,-300.0,0.00013971,2]
[384260073,1757310650182,-300.0,0.00013971,2]
[384260075,1757310650191,-300.0,0.00013971,2]
[384260077,1757310650200,-300.0,0.00013971,2]
[384260078,1757310650209,-300.0,0.00013971,2]
[384260081,1757310650219,-300.0,0.00013971,2]
[384260082,1757310650228,-300.0,0.00013971,2]
[384260085,1757310650238,-300.0,0.00013971,2]
[384260086,1757310650247,-300.0,0.00013971,2]
[384260088,1757310650256,-300.0,0.00013971,2]
[384260090,1757310650265,-300.0,0.00013971,2]
[384260092,1757310650275,-300.0,0.00013971,2]
[384260094,1757310650284,-300.0,0.00013971,2]
[384260097,1757310650294,-300.0,0.00013971,2]
[384260098,1757310650304,-600.0,0.00013971,2]
[384260100,1757310650313,-928.61,0.00013971,2]
[384260102,1757310650323,-928.61,0.00013971,2]
[384260104,1757310650332,-928.61,0.00013971,2]
[384260107,1757310650342,-200.0,0.00013971,2]
[384260108,1757310650352,-160.16467981,0.00013971,2]
[384260110,1757310650361,-206.31313436,0.00013971,2]
[384260112,1757310650371,-500.0,0.00013972,2]
[384260114,1757310650380,-157.0,0.00013972,2]
[384260116,1757310650390,-500.0,0.00013972,2]
[384260119,1757310650399,-157.0,0.00013972,2]
[384260121,1757310650409,-500.0,0.00013972,2]
[384260122,1757310650418,-157.0,0.00013972,2]
[384260124,1757310650428,-157.0,0.00013972,2]
[384260126,1757310650437,-500.0,0.00013972,2]
[384260128,1757310650446,-500.0,0.00013972,2]
[384260130,1757310650456,-600.0,0.00013972,2]
[384260132,1757310650465,-248.65944168,0.00013972,2]
[384260134,1757310650474,-590.32145308,0.00013972,2]
[384260136,1757310650482,-500.0,0.00013972,2]
[384260138,1757310650492,-157.0,0.00013972,2]
[384260140,1757310650502,-500.0,0.00013972,2]
[384260142,1757310650512,-549.45507903,0.00013972,2]
[384260144,1757310650522,-480.0,0.00013972,2]
[384260146,1757310650531,-480.0,0.00013972,2]
[384260149,1757310650541,-487.62795266,0.00013972,2]
[384260151,1757310650550,-480.0,0.00013972,2]
[384260152,1757310650562,-480.0,0.00013972,2]
[384260154,1757310650571,-481.31005437,0.00013972,2]
[384260156,1757310650580,-480.0,0.00013972,2]
[384260158,1757310650590,-480.2,0.00013972,2]
[384260160,1757310650599,-480.0,0.00013972,2]
[384260162,1757310650610,-443.9301067,0.00013972,2]
[384260164,1757310650619,-483.56213327,0.00013972,2]
[384260166,1757310650628,-480.0,0.00013972,2]
[384260168,1757310650638,-480.0,0.00013972,2]
[384260170,1757310650647,-480.0,0.00013972,2]
[384260172,1757310650656,-480.0,0.00013972,2]
[384260174,1757310650665,-480.0,0.00013972,2]
[384260176,1757310650674,-480.0,0.00013972,2]
[384260178,1757310650684,-480.0,0.00013972,2]
[384260180,1757310650696,-480.0,0.00013972,2]
[384260182,1757310650707,-480.0,0.00013972,2]
[384260184,1757310650716,-480.0,0.00013972,2]
[384260186,1757310650726,-487.60965408,0.00013972,2]
[384260188,1757310650736,-480.0,0.00013972,2]
[384260190,1757310650745,-480.0,0.00013972,2]
[384260192,1757310650756,-480.0,0.00013972,2]
[384260194,1757310650766,-480.0,0.00013972,2]
[384260196,1757310650775,-480.0,0.00013972,2]
[384260198,1757310650784,-481.66279927,0.00013972,2]
[384260200,1757310650794,-480.0,0.00013972,2]
[384260202,1757310650804,-487.6475919,0.00013972,2]
[384260204,1757310650814,-480.0,0.00013972,2]
[384260206,1757310650823,-483.21652975,0.00013972,2]
[384260208,1757310650832,-489.08428178,0.00013972,2]
[384260210,1757310650841,-480.0,0.00013972,2]
[384260212,1757310650851,-480.0,0.00013972,2]
[384260214,1757310650862,-480.0,0.00013972,2]
[384260216,1757310650871,-480.0,0.00013972,2]
[384260218,1757310650881,-482.77404231,0.00013972,2]
[384260220,1757310650890,-206.16102985,0.00013972,2]
[384260222,1757310650899,-486.29209323,0.00013972,2]
[384260224,1757310650909,-480.0,0.00013972,2]
[384260226,1757310650919,-480.0,0.00013972,2]
[384260228,1757310650929,-480.0,0.00013972,2]
[384260230,1757310650938,-482.55535705,0.00013972,2]
[384260232,1757310650948,-480.0,0.00013972,2]
[384260234,1757310650958,-480.0,0.00013972,2]
[384260236,1757310650967,-480.0,0.00013972,2]
[384260238,1757310650977,-480.0,0.00013972,2]
[384260240,1757310650987,-733.2,0.00013972,2]
[384260242,1757310650996,-480.0,0.00013972,2]
[384260244,1757310651006,-483.38155264,0.00013972,2]
[384260246,1757310651016,-480.0,0.00013972,2]
[384260248,1757310651026,-480.0,0.00013972,2]
[384260250,1757310651036,-484.89979357,0.00013972,2]
[384260252,1757310651045,-480.0,0.00013972,2]
[384260254,1757310651055,-480.0,0.00013972,2]
[384260256,1757310651064,-480.0,0.00013972,2]
[384260258,1757310651074,-480.0,0.00013972,2]
[384260259,1757310651083,-480.0,0.00013972,2]
[384260260,1757310651092,-480.0,0.00013972,2]
[384260261,1757310651101,-480.0,0.00013972,2]
[384260262,1757310651110,-480.0,0.00013972,2]
[384260263,1757310651119,-480.0,0.00013972,2]
[384260264,1757310651128,-236.97555573,0.00013972,2]
[384260265,1757310651138,-362.48630081,0.00013972,2]
[384260267,1757310651147,-482.93289173,0.00013972,2]
[384260269,1757310651157,-480.0,0.00013972,2]
[384260271,1757310651166,-480.0,0.00013972,2]
[384260273,1757310651175,-480.0,0.00013972,2]
[384260275,1757310651184,-480.0,0.00013972,2]
[384260277,1757310651193,-480.0,0.00013972,2]
[384260278,1757310651203,-480.0,0.00013972,2]
[384260280,1757310651212,-480.0,0.00013972,2]
[384260283,1757310651225,-338.52319661,0.00013972,2]
[384260285,1757310651235,-480.0,0.00013972,2]
[384260287,1757310651244,-480.0,0.00013972,2]
[384260288,1757310651254,-480.0,0.00013972,2]
[384260290,1757310651264,-480.0,0.00013972,2]
[384260293,1757310651274,-480.0,0.00013972,2]
[384260295,1757310651283,-480.0,0.00013972,2]
[384260297,1757310651293,-480.0,0.00013972,2]
[384260299,1757310651302,-480.0,0.00013972,2]
[384260300,1757310651311,-480.0,0.00013972,2]
[384260302,1757310651320,-480.0,0.00013972,2]
[384260304,1757310651330,-480.0,0.00013972,2]
[384260306,1757310651339,-384.93601439,0.00013972,2]
[384260309,1757310651349,-480.0,0.00013972,2]
[384260311,1757310651359,-548.12322682,0.00013972,2]
[384260313,1757310651370,-480.0,0.00013972,2]
[384260315,1757310651381,-480.0,0.00013972,2]
[384260317,1757310651391,-480.0,0.00013972,2]
[384260318,1757310651400,-480.0,0.00013972,2]
[384260320,1757310651409,-480.0,0.00013972,2]
[384260323,1757310651420,-480.0,0.00013972,2]
[384260325,1757310651429,-487.60946692,0.00013972,2]
[384260327,1757310651439,-285.31010341,0.00013972,2]
[384260328,1757310651451,-480.0,0.00013972,2]
[384260330,1757310651461,-480.0,0.00013972,2]
[384260332,1757310651471,-480.0,0.00013972,2]
[384260334,1757310651481,-270.9860836,0.00013972,2]
[384260337,1757310651491,-480.0,0.00013972,2]
[384260338,1757310651500,-480.0,0.00013972,2]
[384260340,1757310651510,-480.0,0.00013972,2]
[384260342,1757310651519,-496.47208194,0.00013972,2]
[384260345,1757310651528,-480.0,0.00013972,2]
[384260346,1757310651537,-480.0,0.00013972,2]
[384260349,1757310651547,-480.0,0.00013972,2]
[384260351,1757310651556,-480.0,0.00013972,2]
[384260352,1757310651568,-480.0,0.00013972,2]
[384260355,1757310651578,-480.0,0.00013972,2]
[384260357,1757310651587,-480.0,0.00013972,2]
[384260359,1757310651596,-480.0,0.00013972,2]
[384260361,1757310651606,-480.0,0.00013972,2]
[384260363,1757310651617,-480.0,0.00013972,2]
[384260365,1757310651629,-496.07911151,0.00013972,2]
[384260367,1757310651641,-372.6907395,0.00013972,2]
[384260369,1757310651651,-320.13397083,0.00013972,2]
[384260371,1757310651661,-480.0,0.00013972,2]
[384260373,1757310651670,-781.25,0.00013972,2]
[384260375,1757310651679,-480.0,0.00013972,2]
[384260377,1757310651688,-480.0,0.00013972,2]
[384260379,1757310651698,-480.0,0.00013972,2]
[384260380,1757310651707,-480.0,0.00013972,2]
[384260382,1757310651718,-480.0,0.00013972,2]
[384260384,1757310651728,-480.0,0.00013972,2]
[384260387,1757310651738,-480.0,0.00013972,2]
[384260388,1757310651747,-480.0,0.00013972,2]
[384260390,1757310651758,-480.0,0.00013972,2]
[384260392,1757310651768,-480.0,0.00013972,2]
[384260394,1757310651778,-480.0,0.00013972,2]
[384260396,1757310651788,-480.0,0.00013972,2]
[384260398,1757310651798,-480.0,0.00013972,2]
[384260400,1757310651808,-480.0,0.00013972,2]
[384260402,1757310651817,-480.0,0.00013972,2]
[384260405,1757310651827,-480.0,0.00013972,2]
[384260407,1757310651837,-480.0,0.00013972,2]
[384260409,1757310651848,-483.5719432,0.00013972,2]
[384260410,1757310651858,-480.0,0.00013972,2]
[384260412,1757310651868,-480.0,0.00013972,2]
[384260415,1757310651877,-480.0,0.00013972,2]
[384260417,1757310651887,-480.0,0.00013972,2]
[384260419,1757310651898,-480.0,0.00013972,2]
[384260421,1757310651907,-480.0,0.00013972,2]
[384260423,1757310651917,-480.0,0.00013972,2]
[384260425,1757310651927,-484.18379941,0.00013972,2]
[384260426,1757310651936,-480.0,0.00013972,2]
[384260428,1757310651945,-480.0,0.00013972,2]
[384260430,1757310651954,-480.0,0.00013972,2]
[384260432,1757310651963,-480.0,0.00013972,2]
[384260434,1757310651972,-491.3213349,0.00013972,2]
[384260436,1757310651982,-480.0,0.00013972,2]
[384260438,1757310651991,-480.0,0.00013972,2]
[384260441,1757310652001,-480.0,0.00013972,2]
[384260442,1757310652011,-480.0,0.00013972,2]
[384260445,1757310652020,-480.0,0.00013972,2]
[384260447,1757310652030,-487.11880272,0.00013972,2]
[384260449,1757310652040,-480.0,0.00013972,2]
[384260451,1757310652051,-485.34828893,0.00013972,2]
[384260452,1757310652061,-480.0,0.00013972,2]
[384260454,1757310652070,-323.07144135,0.00013972,2]
[384260457,1757310652080,-480.0,0.00013972,2]
[384260458,1757310652089,-480.0,0.00013972,2]
[384260461,1757310652098,-480.0,0.00013972,2]
[384260463,1757310652108,-480.0,0.00013972,2]
[384260464,1757310652117,-480.0,0.00013972,2]
[384260467,1757310652127,-482.70283534,0.00013972,2]
[384260478,1757310652217,-480.0,0.00013972,2]
[384260480,1757310652236,-480.0,0.00013972,2]
[384260482,1757310652246,-482.70095357,0.00013972,2]
[384260484,1757310652255,-512.47183587,0.00013972,2]
[384260486,1757310652264,-480.0,0.00013972,2]
[384260488,1757310652273,-306.82428471,0.00013972,2]
[384260490,1757310652283,-480.0,0.00013972,2]
[384260492,1757310652292,-491.23623118,0.00013972,2]
[384260494,1757310652301,-480.0,0.00013972,2]
[384260496,1757310652312,-480.0,0.00013972,2]
[384260499,1757310652322,-480.0,0.00013972,2]
[384260500,1757310652331,-480.0,0.00013972,2]
[384260503,1757310652341,-480.0,0.00013972,2]
[384260505,1757310652350,-480.0,0.00013972,2]
[384260506,1757310652360,-480.0,0.00013972,2]
[384260509,1757310652369,-480.0,0.00013972,2]
[384260510,1757310652379,-480.0,0.00013972,2]
[384260512,1757310652388,-487.9698167,0.00013972,2]
[384260514,1757310652397,-487.81678054,0.00013972,2]
[384260516,1757310652406,-480.0,0.00013972,2]
[384260518,1757310652416,-480.0,0.00013972,2]
[384260521,1757310652425,-481.69017982,0.00013972,2]
[384260523,1757310652435,-971.66,0.00013972,2]
[384260525,1757310652444,-480.0,0.00013972,2]
[384260526,1757310652454,-493.3114568,0.00013972,2]
[384260529,1757310652463,-480.0,0.00013972,2]
[384260531,1757310652472,-480.0,0.00013972,2]
[384260532,1757310652481,-480.0,0.00013972,2]
[384260535,1757310652491,-481.56135912,0.00013972,2]
[384260537,1757310652500,-480.0,0.00013972,2]
[384260538,1757310652509,-482.82466535,0.00013972,2]
[384260541,1757310652519,-480.0,0.00013972,2]
[384260542,1757310652528,-482.62525279,0.00013972,2]
[384260544,1757310652537,-484.25021123,0.00013972,2]
[384260546,1757310652546,-480.0,0.00013972,2]
[384260548,1757310652555,-480.0,0.00013972,2]
[384260550,1757310652568,-480.0,0.00013972,2]
[384260552,1757310652577,-480.0,0.00013972,2]
[384260554,1757310652586,-480.0,0.00013972,2]
[384260556,1757310652595,-480.0,0.00013972,2]
[384260558,1757310652605,-480.0,0.00013972,2]
[384260560,1757310652615,-480.0,0.00013972,2]
[384260562,1757310652624,-480.0,0.00013972,2]
[384260564,1757310652634,-480.0,0.00013972,2]
[384260566,1757310652644,-480.0,0.00013972,2]
[384260568,1757310652653,-480.0,0.00013972,2]
[384260570,1757310652663,-480.0,0.00013972,2]
[384260572,1757310652672,-305.5094072,0.00013972,2]
[384260574,1757310652681,-480.0,0.00013972,2]
[384260576,1757310652690,-480.0,0.00013972,2]
[384260578,1757310652699,-568.13,0.00013972,2]
[384260580,1757310652708,-480.0,0.00013972,2]
[384260582,1757310652717,-507.71694965,0.00013972,2]
[384260584,1757310652727,-480.0,0.00013972,2]
[384260586,1757310652736,-480.0,0.00013972,2]
[384260588,1757310652745,-480.0,0.00013972,2]
[384260590,1757310652755,-406.12691404,0.00013972,2]
[384260592,1757310652764,-507.18836732,0.00013972,2]
[384260594,1757310652773,-480.0,0.00013972,2]
[384260596,1757310652783,-480.0,0.00013972,2]
[384260598,1757310652792,-480.0,0.00013972,2]
[384260599,1757310652801,-487.23432332,0.00013972,2]
[384260602,1757310652814,-480.0,0.00013972,2]
[384260604,1757310652823,-480.0,0.00013972,2]
[384260606,1757310652832,-480.0,0.00013972,2]
[384260608,1757310652841,-4983.26,0.00013972,2]
[384260609,1757310652851,-1038.39,0.00013972,2]
[384260611,1757310652860,-480.0,0.00013972,2]
[384260613,1757310652869,-483.737292,0.00013972,2]
[384260615,1757310652879,-480.0,0.00013972,2]
[384260617,1757310652888,-2849.54,0.00013972,2]
[384260619,1757310652898,-511.56,0.00013972,2]
[384260621,1757310652907,-480.0,0.00013972,2]
[384260623,1757310652916,-480.0,0.00013972,2]
[384260625,1757310652925,-480.0,0.00013972,2]
[384260627,1757310652935,-480.0,0.00013972,2]
[384260629,1757310652945,-1374.54,0.00013972,2]
[384260631,1757310652954,-480.0,0.00013972,2]
[384260633,1757310652964,-489.86,0.00013972,2]
[384260635,1757310652973,-480.0,0.00013972,2]
[384260637,1757310652982,-480.0,0.00013972,2]
[384260639,1757310652992,-1253.23,0.00013972,2]
[384260641,1757310653001,-480.0,0.00013972,2]
[384260643,1757310653010,-485.63422614,0.00013972,2]
[384260645,1757310653020,-480.0,0.00013972,2]
[384260647,1757310653029,-170.73453994,0.00013972,2]
[384260648,1757310653038,-531.91,0.00013972,2]
[384260650,1757310653047,-805.39,0.00013972,2]
[384260652,1757310653056,-480.0,0.00013972,2]
[384260654,1757310653066,-480.0,0.00013972,2]
[384260656,1757310653075,-490.48016069,0.00013972,2]
[384260658,1757310653084,-480.0,0.00013972,2]
[384260660,1757310653093,-541.57,0.00013972,2]
[384260662,1757310653103,-337.22089066,0.00013972,2]
[384260664,1757310653113,-1803.99,0.00013972,2]
[384260666,1757310653122,-486.33439939,0.00013972,2]
[384260668,1757310653131,-579.51,0.00013972,2]
[384260670,1757310653140,-480.0,0.00013972,2]
[384260671,1757310653149,-484.43232932,0.00013972,2]
[384260673,1757310653158,-580.65809944,0.00013972,2]
[384260675,1757310653167,-1268.63,0.00013972,2]
[384260677,1757310653176,-483.90666192,0.00013972,2]
[384260679,1757310653186,-480.0,0.00013972,2]
[384260681,1757310653195,-480.0,0.00013972,2]
[384260683,1757310653204,-486.55935193,0.00013972,2]
[384260685,1757310653213,-483.49735075,0.00013972,2]
[384260687,1757310653222,-480.0,0.00013972,2]
[384260689,1757310653231,-480.0,0.00013972,2]
[384260691,1757310653241,-480.0,0.00013972,2]
[384260693,1757310653250,-487.16865222,0.00013972,2]
[384260695,1757310653259,-480.0,0.00013972,2]
[384260697,1757310653268,-480.0,0.00013972,2]
[384260699,1757310653278,-480.0,0.00013972,2]
[384260701,1757310653287,-480.0,0.00013972,2]
[384260703,1757310653296,-487.40306954,0.00013972,2]
[384260704,1757310653305,-480.0,0.00013972,2]
[384260706,1757310653315,-480.0,0.00013972,2]
[384260708,1757310653324,-487.78327059,0.00013972,2]
[384260710,1757310653333,-480.0,0.00013972,2]
[384260712,1757310653342,-441.88219619,0.00013972,2]
[384260714,1757310653351,-2349.28,0.00013972,2]
[384260716,1757310653361,-480.0,0.00013972,2]
[384260718,1757310653370,-489.12254183,0.00013972,2]
[384260720,1757310653380,-528.06,0.00013972,2]
[384260722,1757310653389,-480.0,0.00013972,2]
[384260724,1757310653398,-541.82722096,0.00013972,2]
[384260725,1757310653408,-695.3,0.00013972,2]
[384260727,1757310653418,-480.0,0.00013972,2]
[384260729,1757310653428,-480.0,0.00013972,2]
[384260731,1757310653439,-480.0,0.00013972,2]
[384260733,1757310653448,-480.0,0.00013972,2]
[384260735,1757310653457,-481.40088777,0.00013972,2]
[384260737,1757310653466,-485.58124528,0.00013972,2]
[384260739,1757310653475,-1526.58,0.00013972,2]
[384260741,1757310653484,-480.0,0.00013972,2]